bitfinex/quotes_ETHUSD_20250724
["timestamp","ask_amount","ask_price","bid_price","bid_amount"]
[1753356797705,0.1368,3652.3,3651.8,0.55]
[1753356797906,0.1368,3652.3,3651.9,0.4655]
[1753356798149,0.002,3652.4,3652.0,0.55]
[1753356798441,0.002,3652.4,3652.1,3.66178131]
[1753356798618,0.002,3652.4,3652.1,0.9237]
[1753356798958,0.002,3652.4,3652.2,0.4655]
[1753356799237,0.002,3652.4,3652.2,0.9237]
[1753356799644,0.002,3652.4,3652.0,6.28819864]
[1753356799645,0.002,3652.4,3652.0,0.55]
[1753356799938,0.002,3652.4,3652.1,0.4655]
[1753356800143,0.002,3652.4,3652.1,3.20365058]
[1753356801033,0.002,3652.4,3652.1,0.4655]
[1753356801863,0.002,3652.4,3652.0,4.815]
[1753356802048,0.002,3652.4,3652.3,2.73800071]
[1753356802448,0.002,3652.4,3652.3,1.0155]
[1753356802772,0.002,3652.4,3652.3,0.55]
[1753356803677,0.002,3652.4,3652.1,0.55]
[1753356803977,0.002,3652.4,3652.3,8.09130071]
[1753356804267,0.002,3652.4,3652.3,9.6034774]
[1753356806688,0.002,3652.4,3652.3,13.8674774]
[1753356808864,0.002,3652.4,3652.3,10.37487669]
[1753356809219,0.002,3652.4,3652.3,11.16800071]
[1753356811054,0.002,3652.4,3652.3,10.68880071]
[1753356811775,0.002,3652.4,3652.3,4.4008]
[1753356812074,0.9203,3652.4,3652.3,4.262]
[1753356812445,0.4346,3652.4,3652.3,4.262]
[1753356813482,3.17252574,3652.4,3652.3,4.262]
[1753356813669,3.65822574,3652.4,3652.3,4.262]
[1753356813853,3.65822574,3652.4,3652.0,4.4268]
[1753356813854,3.65826468,3652.4,3652.0,4.29]
[1753356814059,3.65826468,3652.4,3652.1,4.262]
[1753356814060,1.7287,3652.3,3652.1,4.262]
[1753356814281,1.7287,3652.3,3651.9,0.001]
[1753356814282,2.87495065,3652.1,3651.9,0.001]
[1753356814479,2.73822562,3652.0,3651.9,0.001]
[1753356814670,4.48252562,3652.0,3651.9,0.001]
[1753356817808,2.73996619,3652.4,3651.9,0.001]
[1753356817809,0.002,3652.4,3652.1,0.55]
[1753356817952,0.002,3652.4,3652.3,19.49402971]
[1753356818156,0.04,3652.9,3652.8,4.10852593]
[1753356818393,0.04,3652.9,3652.8,12.94452257]
[1753356818589,0.04,3652.9,3652.8,13.82904632]
[1753356818752,0.04,3652.9,3652.8,13.34984632]
[1753356818953,0.04,3652.9,3652.8,13.82904632]
[1753356819290,0.002,3653.2,3652.9,7.14954727]
[1753356819491,0.002,3653.2,3652.9,9.10008641]
[1753356819696,0.002,3653.2,3652.9,10.01198641]
[1753356820200,0.002,3653.2,3652.9,11.10245371]
[1753356820762,1e-08,3653.0,3652.9,10.01198641]
[1753356820996,0.002,3653.2,3653.0,7.37794333]
[1753356821164,0.002,3653.2,3653.0,11.14617956]
[1753356821688,0.002,3653.2,3653.0,10.05571227]
[1753356823098,0.002,3653.2,3653.0,9.19371598]
[1753356823686,0.002,3653.2,3653.0,13.45471598]
[1753356824283,0.002,3653.2,3653.0,13.58982808]
[1753356826003,0.002,3653.6,3653.5,6.2871014]
[1753356826195,0.002,3653.6,3653.5,12.25084416]
[1753356826395,0.77575016,3655.9,3654.7,1.3513]
[1753356826599,0.04,3655.9,3655.8,2.73537939]
[1753356826792,0.04,3655.9,3655.8,10.90727939]
[1753356826985,0.04,3655.9,3655.8,11.45727939]
[1753356827306,0.04,3655.9,3655.8,6.28537939]
[1753356827509,0.5257,3655.9,3655.8,6.99837939]
[1753356828100,1.14616,3655.9,3655.8,7.00237939]
[1753356828278,1.14616,3655.9,3655.8,2.93908294]
[1753356828478,1.14616,3655.9,3655.8,0.20370355]
[1753356828479,0.22786,3655.9,3655.8,0.20370355]
[1753356828703,0.66046,3655.9,3655.5,4.267]
[1753356828870,0.4326,3655.8,3655.5,4.267]
[1753356829072,0.1368,3655.6,3655.5,4.267]
[1753356829273,1.0551,3655.6,3655.5,4.267]
[1753356829879,1.0551,3655.6,3655.1,2.73590325]
[1753356830081,0.1368,3655.4,3655.2,7.00181043]
[1753356830425,0.1368,3655.4,3655.3,7.00075356]
[1753356830825,0.1368,3655.4,3655.3,7.2042928]
[1753356830974,0.1368,3655.4,3655.3,4.46853924]
[1753356831181,0.1368,3655.4,3655.3,7.2042928]
[1753356831391,0.1368,3655.4,3655.3,4.46853924]
[1753356831592,1.0611,3655.4,3655.3,4.46753924]
[1753356831924,1.0611,3655.4,3654.8,0.1368]
[1753356832234,2.73552212,3655.7,3655.0,2.73596207]
[1753356832522,0.7836,3655.5,3655.1,4.262]
[1753356832723,0.1368,3655.2,3655.1,4.262]
[1753356833041,0.6225,3655.2,3655.1,4.262]
[1753356833225,0.6225,3655.2,3654.5,5.73629446]
[1753356833226,1.0611,3655.2,3654.5,5.73629446]
[1753356833390,0.9243,3655.1,3654.7,3.0]
[1753356833726,1.0611,3655.0,3654.8,6.9981264]
[1753356834072,1.0611,3655.0,3654.8,7.19970784]
[1753356834508,1.0611,3655.0,3654.8,0.20158144]
[1753356834682,0.9243,3654.9,3654.7,4.261]
[1753356835097,0.9243,3654.8,3654.2,2.73650506]
[1753356835318,0.7836,3655.5,3654.3,4.26]
[1753356835319,0.1368,3654.5,3654.3,4.26]
[1753356835678,1.0611,3654.5,3654.4,2.73642732]
[1753356835905,1.0611,3654.5,3654.3,6.99648915]
[1753356836109,1.0611,3654.5,3654.4,4.259]
[1753356836491,1.0611,3654.5,3654.4,6.99542732]
[1753356836692,1.0611,3654.5,3654.4,4.259]
[1753356838686,0.1368,3654.5,3654.4,6.99542732]
[1753356838906,0.1368,3654.5,3654.2,0.2087195]
[1753356839099,0.9118,3654.4,3654.3,4.259]
[1753356839510,1.0486,3654.4,3653.8,0.1368]
[1753356839834,1.0486,3654.4,3653.7,3.19938518]
[1753356839835,0.9118,3654.4,3654.0,3.0]
[1753356840033,0.9118,3654.4,3654.1,4.258]
[1753356840328,2.87344453,3654.2,3653.8,0.20732311]
[1753356840512,0.1368,3653.9,3653.1,0.04]
[1753356840695,0.1368,3653.6,3653.2,4.259]
[1753356840896,0.1368,3653.6,3653.5,2.7371014]
[1753356841219,0.1368,3654.1,3653.6,0.55]
[1753356841524,0.1368,3654.1,3653.5,3.7532]
[1753356841525,1.6646,3654.9,3653.9,0.55]
[1753356841821,0.1368,3654.6,3654.1,0.1368]
[1753356842008,0.1368,3654.6,3654.3,2.73642997]
[1753356842381,0.1368,3654.6,3654.2,6.99553039]
[1753356842599,0.9118,3654.5,3654.1,2.73665197]
[1753356842799,0.9118,3654.4,3654.2,6.99556101]
[1753356843219,0.9118,3654.4,3654.2,4.259]
[1753356843721,0.1368,3654.6,3654.2,2.73652756]
[1753356844089,0.1368,3654.6,3654.2,6.99552756]
[1753356844291,0.1368,3654.6,3654.2,4.259]
[1753356844519,1.0486,3654.6,3654.2,4.259]
[1753356844726,0.5754,3654.6,3654.2,4.259]
[1753356845025,2.73677936,3654.0,3653.5,0.20943823]
[1753356845184,0.1368,3653.7,3653.6,4.259]
[1753356845386,0.1368,3653.7,3653.5,4.259]
[1753356845624,0.1368,3653.7,3653.6,0.4625]
[1753356845782,0.1368,3653.7,3653.6,3.19952649]
[1753356845986,0.7689,3655.0,3653.7,3.0]
[1753356846200,0.1368,3654.4,3654.1,2.73661431]
[1753356846421,0.1368,3654.4,3654.2,4.263]
[1753356846629,0.1368,3654.4,3654.2,6.99957122]
[1753356847331,0.1368,3654.4,3654.3,2.7365022]
[1753356847495,1.32058694,3654.9,3654.4,2.73638604]
[1753356847691,0.1368,3654.5,3654.4,0.4625]
[1753356848014,0.1368,3654.5,3654.4,7.46192732]
[1753356848201,0.1368,3654.5,3654.4,4.263]
[1753356849321,0.1368,3654.5,3654.4,6.99942732]
[1753356849526,0.4732,3654.8,3654.4,4.263]
[1753356849826,0.1368,3654.6,3654.4,4.263]
[1753356850120,0.1368,3654.6,3654.4,6.99942387]
[1753356850322,0.1368,3654.6,3654.4,4.263]
[1753356854930,0.1368,3654.6,3654.4,4.259]
[1753356855116,0.8163,3654.4,3653.3,0.67208554]
[1753356855318,0.8163,3654.4,3653.6,2.73698226]
[1753356855319,0.1368,3653.8,3653.6,2.73698226]
[1753356855637,0.1368,3653.8,3653.7,4.259]
[1753356856201,0.1368,3653.8,3653.7,6.99595158]
[1753356856397,0.1368,3653.8,3653.7,4.259]
[1753356856596,1.0486,3653.8,3653.2,2.87408204]
[1753356856832,1.0486,3653.8,3653.4,3.0]
[1753356857127,0.1368,3653.8,3653.6,2.73697971]
[1753356857294,0.1368,3653.8,3653.6,6.99597971]
[1753356857496,0.1368,3653.8,3653.6,2.73697971]
[1753356857705,0.1368,3653.8,3653.7,4.259]
[1753356858639,0.1368,3653.8,3653.7,6.99595158]
[1753356858945,1.29847055,3654.3,3654.0,2.73666223]
[1753356859165,0.1368,3654.2,3654.0,4.259]
[1753356859346,0.1368,3654.2,3654.1,3.19915197]
[1753356860317,1.29847055,3654.3,3654.2,2.73657708]
[1753356860516,1.29847055,3654.3,3654.2,7.45807708]
[1753356860755,1.29847055,3654.3,3654.2,7.91537708]
[1753356861640,1.29847055,3654.3,3654.2,9.54425998]
[1753356861840,1.29847055,3654.3,3654.2,9.68105998]
[1753356862229,1.29847055,3654.3,3654.2,12.68105998]
[1753356862426,1.29847055,3654.3,3654.2,13.47825998]
[1753356863925,1.29847055,3654.3,3654.2,13.68504238]
[1753356866226,1.29847055,3654.3,3654.2,13.68404238]
[1753356866646,0.002,3654.9,3654.8,3.28612783]
[1753356866847,0.002,3654.9,3654.8,11.50972783]
[1753356867047,0.002,3654.9,3654.8,11.97222783]
[1753356867249,0.002,3654.9,3654.8,12.42952783]
[1753356868725,0.002,3654.9,3654.8,11.96702783]
[1753356868926,0.002,3654.9,3654.8,13.88975197]
[1753356870187,0.002,3654.9,3654.8,9.17445197]
[1753356870462,0.002,3654.9,3654.8,6.99412783]
[1753356870966,0.002,3654.9,3654.8,7.99652783]
[1753356871146,0.002,3654.9,3654.8,11.59062783]
[1753356871821,0.002,3654.9,3654.8,11.13332783]
[1753356872131,0.002,3654.9,3654.8,12.99501759]
[1753356872459,0.002,3654.9,3654.8,13.45231759]
[1753356873525,0.002,3654.9,3654.8,14.27081759]
[1753356873951,1e-08,3654.9,3654.8,34.70391359]
[1753356874734,1e-08,3654.9,3654.8,29.37128159]
[1753356874953,1e-08,3654.9,3654.8,25.22501259]
[1753356875272,1e-08,3654.9,3654.8,24.81418659]
[1753356875761,1e-08,3654.9,3654.8,22.81170259]
[1753356876060,1e-08,3654.9,3654.8,19.25533659]
[1753356876426,1e-08,3654.9,3654.8,24.69656359]
[1753356877069,1e-08,3654.9,3654.8,19.68543559]
[1753356877662,1e-08,3654.9,3654.8,14.27081759]
[1753356878032,1e-08,3654.9,3654.8,14.26981759]
[1753356878483,1e-08,3654.9,3654.8,16.52143459]
[1753356878778,1e-08,3654.9,3654.8,14.26981759]
[1753356879965,1e-08,3654.9,3654.8,10.01281759]
[1753356880167,1e-08,3654.9,3654.8,9.00551759]
[1753356880333,1e-08,3654.9,3654.8,13.26251759]
[1753356880669,1e-08,3654.9,3654.8,14.26981759]
[1753356881227,1e-08,3654.9,3654.8,10.01281759]
[1753356881464,1e-08,3654.9,3654.8,0.1368]
[1753356881632,1e-08,3654.9,3654.8,7.12992783]
[1753356881832,1e-08,3654.9,3654.8,10.67992783]
[1753356883552,1e-08,3654.9,3654.8,11.13232783]
[1753356883768,1e-08,3654.9,3654.8,11.58962783]
[1753356883967,1e-08,3654.9,3654.8,13.29583858]
[1753356884488,1e-08,3654.9,3654.8,14.04583858]
[1753356885354,1e-08,3654.9,3654.8,18.33583858]
[1753356893881,1e-08,3654.9,3654.8,36.54137387]
[1753356894683,1e-08,3654.9,3654.8,29.86474187]
[1753356897157,1e-08,3654.9,3654.8,37.02474187]
[1753356898758,1e-08,3654.9,3654.8,37.04994187]
[1753356899160,0.002,3655.7,3655.6,2.73552905]
[1753356899511,0.002,3655.7,3655.6,17.26811611]
[1753356899692,0.002,3655.7,3655.6,18.16976082]
[1753356899992,0.002,3655.7,3655.6,18.30656082]
[1753356900367,0.002,3655.7,3655.6,14.05156082]
[1753356900563,0.002,3655.7,3655.6,18.30656082]
[1753356900963,1.7724,3655.7,3655.6,3.1368]
[1753356901166,1.7724,3655.7,3655.6,4.255]
[1753356901363,1.7724,3655.7,3654.3,0.8201]
[1753356901566,0.1368,3655.5,3655.0,0.1368]
[1753356901762,0.941,3655.4,3655.2,2.73578412]
[1753356902093,0.1368,3655.5,3655.3,4.255]
[1753356902498,0.941,3655.4,3655.3,4.255]
[1753356902862,1.7687,3655.4,3655.3,4.255]
[1753356903195,0.8277,3655.4,3655.3,4.805]
[1753356903395,0.8277,3655.4,3654.5,0.55]
[1753356903396,1.7687,3655.4,3655.2,0.1368]
[1753356903564,0.941,3655.3,3654.9,5.73602378]
[1753356903762,0.941,3655.2,3655.0,4.3918]
[1753356904084,0.941,3655.1,3654.3,0.001]
[1753356904395,0.941,3655.1,3654.8,2.87292507]
[1753356904597,0.941,3655.0,3654.9,9.99105296]
[1753356904807,0.941,3655.0,3654.9,7.255]
[1753356905161,0.7578,3654.8,3654.3,0.001]
[1753356905366,3.53967997,3654.6,3654.4,4.255]
[1753356905569,0.941,3654.5,3654.4,4.255]
[1753356905777,0.941,3654.5,3654.3,0.001]
[1753356905778,2.73642732,3654.4,3654.3,0.001]
[1753356905972,4.43492732,3654.4,3654.3,4.256]
[1753356906861,4.43492732,3654.4,3654.3,0.001]
[1753356907492,2.73695158,3653.7,3653.6,0.001]
[1753356907678,3.52695158,3653.7,3653.6,0.001]
[1753356907885,4.46795158,3653.7,3653.6,0.001]
[1753356908692,3.99175158,3653.7,3653.6,0.001]
[1753356908900,4.46795158,3653.7,3653.6,0.001]
[1753356910606,1.731,3653.7,3653.6,0.001]
[1753356911265,4.46795158,3653.7,3653.6,0.001]
[1753356911469,1.731,3653.7,3653.6,0.20638632]
[1753356911701,1.731,3653.7,3653.6,0.001]
[1753356912072,4.46795158,3653.7,3653.6,0.001]
[1753356912272,1.2548,3653.7,3653.6,0.001]
[1753356912472,0.79,3653.7,3653.6,0.001]
[1753356912697,1.2372,3654.0,3653.6,0.001]
[1753356912904,2.73687828,3653.8,3653.6,0.001]
[1753356913104,3.52565158,3653.7,3653.6,0.20548271]
[1753356913399,4.46665158,3653.7,3653.6,0.20548271]
[1753356915282,4.60345158,3653.7,3653.6,0.20548271]
[1753356917604,1.8665,3653.7,3653.6,0.20548271]
[1753356918509,0.9255,3653.7,3653.6,0.20548271]
[1753356919274,0.4648,3654.0,3653.6,0.20548271]
[1753356919479,0.8215,3654.1,3653.8,2.73681196]
[1753356919480,0.9583,3654.1,3653.8,2.73681196]
[1753356920011,0.9583,3654.1,3653.6,0.20548271]
[1753356920172,0.941,3654.0,3653.6,0.20548271]
[1753356920687,0.9384,3654.0,3653.6,0.20548271]
[1753356921385,0.9384,3654.0,3653.6,2.94249898]
[1753356921588,0.9384,3654.0,3653.6,0.20548271]
[1753356922106,0.9384,3654.0,3653.6,2.94249595]
[1753356922475,0.9384,3654.0,3653.6,2.73801324]
[1753356922996,0.9384,3654.0,3653.7,2.73694664]
[1753356923205,0.9384,3654.0,3653.6,0.001]
[1753356923513,0.9384,3654.0,3653.7,2.73694441]
[1753356923806,0.9583,3654.1,3653.8,2.73686796]
[1753356924311,0.9583,3654.1,3653.9,2.73679732]
[1753356924692,0.9583,3654.1,3654.0,2.73672687]
[1753356925007,1.4345,3654.1,3653.9,2.73678495]
[1753356925210,1.8967,3654.1,3653.8,2.73684652]
[1753356925410,1.8967,3654.1,3653.7,0.4776]
[1753356925411,1.8967,3654.1,3653.7,3.21452389]
[1753356925610,1.8967,3654.1,3653.8,2.73680565]
[1753356926507,1.8967,3654.1,3653.7,2.73693245]
[1753356926710,1.8967,3654.1,3653.8,2.73686029]
[1753356926912,0.1368,3654.1,3653.9,0.55]
[1753356927110,0.1368,3654.9,3654.5,2.73628563]
[1753356927311,0.8261,3655.0,3654.3,4.256]
[1753356927612,0.9384,3654.8,3654.5,2.73628672]
[1753356927913,0.9384,3654.7,3654.3,4.3928]
[1753356928120,0.9384,3654.7,3654.4,2.73642732]
[1753356928413,0.1368,3654.9,3654.6,2.73621076]
[1753356928615,1.0765,3654.9,3654.4,3.21400701]
[1753356928818,1.0765,3654.9,3654.3,4.3928]
[1753356928819,0.8028,3654.7,3654.3,0.1368]
[1753356928987,2.73578411,3655.3,3653.9,4.29]
[1753356928988,0.1368,3654.4,3653.9,8.546]
[1753356929312,0.9397,3654.3,3653.9,4.29]
[1753356929537,0.1368,3654.4,3653.9,7.02679396]
[1753356929815,0.9397,3654.2,3653.9,7.02679396]
[1753356930111,0.9397,3654.1,3653.9,7.02679396]
[1753356930294,0.9397,3654.1,3653.9,3.0]
[1753356930495,0.9397,3654.0,3653.9,5.73679]
[1753356931615,0.1368,3654.4,3654.1,2.73660156]
[1753356931787,0.1368,3654.4,3654.2,2.73657236]
[1753356932120,0.1368,3654.4,3653.9,5.73678768]
[1753356932121,0.1368,3654.4,3654.3,2.7365022]
[1753356932417,0.1368,3654.5,3654.1,2.7366417]
[1753356932612,0.1368,3654.5,3654.3,2.73643854]
[1753356932911,0.1368,3654.5,3654.2,2.73653252]
[1753356933080,0.1368,3654.5,3654.0,0.1368]
[1753356933291,0.1368,3654.5,3654.1,7.255]
[1753356933292,0.9397,3654.4,3654.1,7.255]
[1753356933491,0.9397,3654.3,3654.0,0.1368]
[1753356933696,0.9397,3654.2,3654.1,3.0]
[1753356935031,0.9397,3654.2,3653.9,4.255]
[1753356935032,1.7278,3654.2,3653.9,4.255]
[1753356935231,0.9397,3654.1,3653.9,4.255]
[1753356935530,0.9397,3654.0,3653.9,4.255]
[1753356938731,0.9249,3654.2,3653.8,2.73682188]
[1753356938897,0.9249,3654.2,3653.7,4.3918]
[1753356939103,0.1368,3654.2,3654.1,2.73665197]
[1753356939333,0.9417,3654.4,3654.2,2.73653929]
[1753356939334,0.002,3654.4,3654.2,2.73653929]
[1753356939579,0.002,3654.4,3654.1,7.46062142]
[1753356939736,0.002,3654.4,3654.2,2.73656611]
[1753356940037,0.002,3654.4,3654.2,0.47]
[1753356940737,0.002,3654.4,3654.2,2.73653812]
[1753356941130,0.002,3654.4,3654.1,6.99063837]
[1753356941328,0.002,3654.4,3654.1,4.254]
[1753356941641,0.9417,3654.4,3654.1,4.254]
[1753356942343,0.4775,3654.3,3654.1,4.254]
[1753356942543,0.4642,3654.4,3654.1,4.254]
[1753356942705,0.002,3654.4,3654.1,4.254]
[1753356942907,0.002,3654.4,3654.1,6.99061874]
[1753356943617,0.002,3654.4,3654.1,6.99062584]
[1753356943800,0.002,3654.4,3654.1,4.254]
[1753356944004,0.9417,3654.4,3654.1,4.254]
[1753356946335,3.67816348,3654.4,3654.1,4.254]
[1753356947445,0.4775,3654.3,3654.1,4.254]
[1753356947603,0.4642,3654.4,3654.1,4.254]
[1753356947604,0.9417,3654.4,3654.1,4.254]
[1753356947803,0.002,3654.4,3654.1,4.254]
[1753356948140,0.002,3654.4,3654.1,4.724]
[1753356949447,2.7365022,3654.3,3654.1,4.254]
[1753356949946,3.1987022,3654.3,3654.1,4.254]
[1753356950110,3.6762022,3654.3,3654.1,4.254]
[1753356950312,2.73672687,3654.0,3653.9,4.253]
[1753356950512,0.9397,3654.0,3653.9,4.253]
[1753356950713,2.73687667,3653.8,3653.7,4.253]
[1753356951013,2.73695158,3653.7,3653.6,0.21091441]
[1753356951209,0.9079,3653.7,3653.6,0.21091441]
[1753356951415,0.9462,3653.8,3653.6,0.21091441]
[1753356951747,0.1368,3653.8,3653.6,0.68091441]
[1753356951911,0.1368,3653.8,3653.6,0.67511441]
[1753356952111,0.1368,3653.8,3653.7,0.47]
[1753356953043,2.87367667,3653.8,3653.6,0.21091441]
[1753356953243,0.7799059,3653.8,3653.6,0.21091441]
[1753356953444,3.64485158,3653.7,3653.6,0.21091441]
[1753356953616,2.73695158,3653.7,3653.6,0.21091441]
[1753356953817,3.64485158,3653.7,3653.6,0.21091441]
[1753356954511,4.42745158,3653.7,3653.6,0.001]
[1753356954949,8.68045158,3653.7,3653.6,0.001]
[1753356956411,8.68045158,3653.7,3653.1,0.04]
[1753356956412,2.73732617,3653.2,3653.1,0.04]
[1753356956617,3.54732617,3653.2,3653.1,0.04]
[1753356956848,4.59202617,3653.2,3653.1,0.04]
[1753356958854,4.57412617,3653.2,3653.1,0.04]
[1753356960528,8.82612617,3653.2,3653.1,0.04]
[1753356961635,3.68412617,3653.2,3653.1,0.04]
[1753356961837,7.77457319,3653.6,3653.1,0.04]
[1753356962039,7.77457319,3653.6,3653.1,0.9753]
[1753356962040,4.253,3653.6,3653.1,0.9753]
[1753356962361,4.253,3653.6,3653.2,0.9353]
[1753356962558,2.73714786,3653.5,3653.2,0.4711]
[1753356962855,2.73689089,3653.8,3653.1,0.04]
[1753356962856,4.252,3653.6,3653.1,0.04]
[1753356963079,0.8282,3653.3,3653.1,0.04]
[1753356963454,1.7182,3653.3,3653.1,0.04]
[1753356963658,4.45547029,3653.3,3653.1,0.04]
[1753356963854,1.7182,3653.3,3653.1,0.04]
[1753356964169,6.98909649,3653.6,3653.2,0.4711]
[1753356964376,4.43836598,3653.7,3653.2,0.4711]
[1753356964541,0.8114,3653.7,3653.3,0.4711]
[1753356964743,2.73681488,3653.9,3653.4,0.9353]
[1753356965069,4.252,3653.8,3653.5,0.4711]
[1753356965273,4.252,3653.8,3653.6,0.4711]
[1753356965488,0.784,3654.3,3653.7,0.4711]
[1753356965791,6.98857708,3654.2,3653.7,0.9353]
[1753356965930,6.98857708,3654.2,3653.7,0.4642]
[1753356966132,6.98857708,3654.2,3653.8,0.4711]
[1753356966482,4.252,3654.3,3653.9,3.67208932]
[1753356966779,4.252,3654.3,3654.0,0.4711]
[1753356966980,4.254,3654.4,3653.9,3.20098932]
[1753356967185,4.254,3654.4,3654.1,0.4711]
[1753356967376,4.254,3654.4,3654.0,0.4711]
[1753356967681,6.99047174,3654.4,3654.0,0.4711]
[1753356967880,3.6265155,3654.3,3653.7,0.4711]
[1753356968237,3.6265155,3654.3,3653.7,3.20803779]
[1753356968434,3.6265155,3654.3,3653.7,0.4711]
[1753356968675,2.73658549,3654.2,3653.7,0.4711]
[1753356968838,2.73662182,3654.2,3653.7,0.4711]
[1753356969239,2.73662182,3654.2,3653.8,0.4711]
[1753356969434,2.73675798,3654.0,3653.4,0.4711]
[1753356969831,2.73675798,3654.0,3653.4,3.20825939]
[1753356970179,5.142,3654.1,3653.4,3.20825939]
[1753356970180,5.142,3654.1,3653.6,2.73701504]
[1753356970384,5.142,3654.1,3653.6,3.20811504]
[1753356970539,5.142,3654.1,3653.6,2.73701504]
[1753356970752,5.142,3654.1,3653.4,2.7371689]
[1753356970753,7.87867503,3654.1,3653.7,0.4711]
[1753356970955,2.73673626,3654.0,3653.4,2.73716708]
[1753356971252,5.142,3654.1,3653.5,0.4711]
[1753356971454,7.87865236,3654.1,3653.5,3.20818355]
[1753356971769,2.87357409,3654.0,3653.5,0.4711]
[1753356972071,0.1368,3654.0,3653.6,0.4711]
[1753356972458,3.19644512,3653.9,3653.3,3.67252991]
[1753356972687,2.87367964,3653.8,3653.3,1.0721]
[1753356972986,0.4596,3653.9,3653.3,0.9353]
[1753356972987,2.87386836,3653.6,3653.3,0.9353]
[1753356973294,0.1368,3653.6,3653.4,0.4711]
[1753356973650,0.1368,3653.6,3653.2,3.8174]
[1753356973985,0.1368,3653.6,3653.5,0.4711]
[1753356978753,0.1368,3653.6,3653.3,0.4642]
[1753356979095,0.1368,3653.6,3653.5,0.4711]
[1753356981390,4.7116,3654.1,3653.7,2.73690791]
[1753356981391,0.1368,3653.8,3653.7,2.73690791]
[1753356981688,0.1368,3653.8,3653.7,0.925]
[1753356982266,0.1368,3653.8,3653.7,3.66195158]
[1753356982465,0.1368,3653.9,3653.8,2.73685287]
[1753356982665,0.1368,3653.9,3653.7,0.4539]
[1753356982868,0.1368,3653.9,3653.8,0.4711]
[1753356983268,0.1368,3653.9,3653.8,3.20797667]
[1753356983968,4.25,3654.3,3653.9,2.73680137]
[1753356984296,0.1368,3654.0,3653.9,0.4711]
[1753356986493,0.1368,3654.0,3653.9,3.20790177]
[1753356986873,0.002,3654.4,3654.0,2.73672687]
[1753356987069,0.1368,3654.2,3654.1,3.66165197]
[1753356987465,0.002,3654.4,3654.3,2.7365022]
[1753356988078,0.002,3654.4,3654.3,3.6615022]
[1753356988274,0.002,3654.4,3654.3,9.2275022]
[1753356988595,0.002,3654.4,3654.3,4.7201]
[1753356988804,0.002,3654.4,3654.3,7.4402022]
[1753356989385,0.002,3654.4,3654.1,0.1368]
[1753356989621,0.1368,3654.2,3653.7,6.98594789]
[1753356989786,0.8996,3654.1,3653.7,4.249]
[1753356990292,0.1368,3654.2,3653.8,0.9086]
[1753356990498,0.1368,3654.2,3653.7,7.65028307]
[1753356990697,1.0364,3654.2,3653.7,7.65028307]
[1753356990898,3.20617006,3654.1,3653.7,4.45764671]
[1753356991100,0.8996,3654.0,3653.7,4.45764671]
[1753356991300,3.63634761,3654.0,3653.7,0.20964671]
[1753356991498,0.8996,3653.9,3653.6,5.73702612]
[1753356991993,0.4301,3653.9,3653.6,5.73702612]
[1753356992192,0.4695,3654.1,3653.6,5.73702612]
[1753356992392,2.87337839,3654.2,3653.6,5.73702612]
[1753356992600,0.8996,3654.0,3653.7,2.73694992]
[1753356992803,0.8996,3654.0,3653.7,2.73694005]
[1753356993097,0.4301,3654.0,3653.6,5.73700016]
[1753356993289,0.6063,3654.2,3653.7,3.19162571]
[1753356993464,3.34288064,3654.2,3653.7,0.4547]
[1753356993979,3.34288064,3654.2,3653.7,3.1916421]
[1753356993980,1.0364,3654.2,3653.7,3.1916421]
[1753356994562,3.16675917,3654.1,3653.7,0.4547]
[1753356994797,3.63625917,3654.1,3653.7,0.4547]
[1753356995098,0.8996,3654.1,3653.7,0.4547]
[1753356995297,0.8996,3654.1,3653.7,3.19164244]
[1753356995498,2.87339688,3654.2,3653.8,0.4547]
[1753356995668,0.1368,3654.2,3653.8,0.4547]
[1753356995993,3.77297903,3654.2,3653.6,6.84861289]
[1753356997297,0.5669,3654.2,3653.7,0.4547]
[1753356997471,0.5669,3654.2,3653.8,0.4547]
[1753356997671,0.1368,3654.2,3653.7,2.73693064]
[1753356997870,2.87337743,3654.2,3653.8,0.4547]
[1753356998170,3.77297743,3654.2,3653.8,0.4547]
[1753356998499,1.0364,3654.2,3653.8,0.4547]
[1753356998677,0.1368,3654.2,3653.8,2.7368572]
[1753356998868,0.1368,3654.2,3653.9,0.4547]
[1753356999069,0.1368,3654.2,3654.0,0.4547]
[1753357001306,0.1368,3654.2,3654.1,0.4547]
[1753357002572,0.1368,3654.2,3654.1,3.64525197]
[1753357002908,0.1368,3654.3,3654.1,0.4547]
[1753357004711,0.002,3654.4,3654.2,3.64510543]
[1753357004909,0.002,3654.4,3654.2,0.4547]
[1753357005475,2.7384405,3654.4,3654.0,0.1368]
[1753357005703,2.87346216,3654.1,3653.7,0.4547]
[1753357006224,0.1368,3654.1,3653.8,0.4547]
[1753357007327,0.1368,3654.1,3653.7,0.4539]
[1753357007505,0.1368,3654.1,3653.9,0.4547]
[1753357007682,2.8734632,3654.1,3653.9,0.4547]
[1753357007882,0.1368,3654.1,3653.9,0.4547]
[1753357009192,2.87348034,3654.1,3653.9,0.4547]
[1753357009392,0.1368,3654.1,3653.7,4.6999]
[1753357009598,0.1368,3654.1,3653.8,0.4547]
[1753357009795,2.87345388,3654.1,3653.8,0.4547]
[1753357009996,0.1368,3654.1,3653.8,0.4547]
[1753357010388,0.1368,3654.1,3653.7,6.98294353]
[1753357010588,0.1368,3654.1,3653.9,0.4547]
[1753357010807,0.1368,3654.1,3653.7,6.98294353]
[1753357011019,0.1368,3654.1,3654.0,0.4547]
[1753357011819,0.1368,3654.1,3653.8,0.4547]